bitfinex/quotes_ETHUSD_20240810
["timestamp","ask_amount","ask_price","bid_price","bid_amount"]
[1723256050385,1.80192862,2605.8,2605.3,7.59250302]
[1723256050590,0.47413778,2605.7,2605.3,7.59250302]
[1723256050890,0.47413778,2605.6,2605.3,6.3228]
[1723256051093,7.67506,2605.9,2605.3,6.3228]
[1723256051094,0.47413778,2605.5,2605.3,6.3228]
[1723256051250,7.67506,2605.9,2605.3,6.3228]
[1723256051447,1.802008,2605.8,2605.3,6.3228]
[1723256051665,0.4742177,2605.7,2605.3,7.4770722]
[1723256051848,0.4742177,2605.6,2605.3,7.4770722]
[1723256052082,0.4742177,2605.5,2605.3,6.3228]
[1723256052280,3.83751,2605.9,2605.3,6.3228]
[1723256052487,1.8019479,2605.8,2605.3,6.3228]
[1723256052697,0.4741471,2605.7,2605.3,7.4770722]
[1723256052908,3.83751,2605.9,2605.3,7.4770722]
[1723256052909,0.4741471,2605.6,2605.3,6.3228]
[1723256053068,0.4741471,2605.5,2605.3,6.3228]
[1723256053272,3.83751,2605.9,2605.3,6.32274]
[1723256053471,0.47408587,2605.8,2605.5,6.32243]
[1723256053671,3.83723,2606.1,2605.5,6.32243]
[1723256053870,3.83723,2606.1,2605.6,0.0753793]
[1723256053871,0.47440192,2606.0,2605.6,0.0753793]
[1723256054096,0.47423808,2605.9,2605.6,0.0753793]
[1723256054278,0.47423808,2605.8,2605.6,0.0753793]
[1723256054479,3.83723,2606.1,2605.6,0.0753793]
[1723256054805,0.47443832,2606.0,2605.6,4.55295023]
[1723256055056,0.47443832,2605.9,2605.6,4.55295023]
[1723256055353,3.83692,2606.3,2605.7,7.40976802]
[1723256055494,1.80251293,2606.2,2605.7,11.24741802]
[1723256055812,0.47493569,2606.1,2605.8,0.07509966]
[1723256056013,3.83692,2606.3,2605.8,0.07509966]
[1723256056014,0.47493569,2606.0,2605.8,0.07509966]
[1723256056230,0.47493569,2605.9,2605.8,0.07509966]
[1723256056390,3.83692,2606.3,2605.8,0.88755652]
[1723256056591,0.47516767,2606.2,2605.8,0.88755652]
[1723256056790,3.83692,2606.3,2605.8,0.88755652]
[1723256057100,0.47522537,2606.2,2605.8,0.88755652]
[1723256057326,0.4753595,2606.1,2605.8,4.72514652]
[1723256057521,3.83692,2606.3,2605.8,4.72514652]
[1723256057899,0.47542422,2606.2,2605.8,4.72514652]
[1723256058431,3.83692,2606.3,2605.8,0.88755652]
[1723256058432,0.47534462,2606.1,2605.8,0.88755652]
[1723256058596,0.47533143,2606.0,2605.8,0.07509966]
[1723256058796,3.83703,2606.2,2605.8,0.07509966]
[1723256059097,0.47533427,2606.1,2605.8,0.07509966]
[1723256059635,0.47533427,2606.0,2605.8,0.07509966]
[1723256059811,0.47524232,2605.9,2605.8,0.07509966]
[1723256060129,0.47529552,2606.2,2605.8,0.07509966]
[1723256060296,0.47529702,2606.1,2605.8,0.71482463]
[1723256060497,0.47529702,2606.0,2605.8,0.07509966]
[1723256060698,3.83692,2606.3,2605.8,0.07509966]
[1723256061024,0.47522559,2606.2,2605.8,0.07509966]
[1723256062578,0.47505862,2606.1,2605.8,0.07509966]
[1723256062778,0.47505862,2606.0,2605.8,0.07509966]
[1723256062980,0.47505862,2606.2,2605.8,0.07509966]
[1723256063182,0.47505594,2606.1,2605.8,0.07509966]
[1723256063382,0.47505594,2606.0,2605.8,0.07509966]
[1723256063584,3.83692,2606.3,2605.8,0.07509966]
[1723256063784,0.47509997,2606.2,2605.8,0.07509966]
[1723256065888,0.47509997,2606.2,2605.8,3.91267966]
[1723256066184,0.47509997,2606.1,2605.8,5.01278613]
[1723256066404,0.47509997,2606.0,2605.8,0.15172316]
[1723256066591,3.83688,2606.3,2605.8,0.07509966]
[1723256066896,0.4751525,2606.2,2605.8,0.07509966]
[1723256067604,0.4751525,2606.2,2605.8,3.91259966]
[1723256067760,0.4751525,2606.1,2605.8,3.91259966]
[1723256067969,1.656,2606.4,2605.8,3.91259966]
[1723256068361,0.47524364,2606.3,2605.8,3.91259966]
[1723256068558,5.49272,2606.4,2606.0,2.3397]
[1723256068786,0.47545731,2606.3,2606.1,0.07474791]
[1723256069104,4.31232731,2606.3,2606.1,0.07474791]
[1723256069265,0.47545731,2606.2,2606.1,0.07474791]
[1723256070275,9.12998604,2606.2,2606.1,0.07474791]
[1723256070479,11.13312684,2606.2,2606.1,0.07474791]
[1723256070698,3.83722,2606.1,2605.5,6.17765]
[1723256070898,0.47545731,2606.0,2605.5,6.17765]
[1723256071067,0.47545731,2606.0,2605.5,8.09384]
[1723256071579,3.83722,2606.1,2605.5,8.09384]
[1723256071890,0.4748104,2606.0,2605.5,8.09384]
[1723256072081,0.4748104,2606.0,2605.5,11.93176]
[1723256072395,0.4748104,2606.0,2605.5,8.09381]
[1723256073099,0.4748104,2606.0,2605.6,0.809381]
[1723256073786,3.83722,2606.1,2605.6,0.809381]
[1723256074760,3.837,2606.2,2605.6,2.465381]
[1723256074975,3.837,2606.2,2605.6,6.303231]
[1723256075164,7.67413,2606.2,2605.6,2.465381]
[1723256075367,3.837,2606.2,2605.6,2.465381]
[1723256075565,3.837,2606.2,2605.8,2.3397]
[1723256082330,1.32762011,2606.1,2605.8,2.3397]
[1723256082488,3.837,2606.2,2605.8,2.3397]
[1723256082688,1.32762593,2606.1,2605.8,2.3397]
[1723256082888,3.837,2606.2,2605.8,2.3397]
[1723256083126,1.32760341,2606.1,2605.8,2.3397]
[1723256083426,3.837,2606.2,2605.8,2.3397]
[1723256083624,1.32760091,2606.1,2605.8,2.3397]
[1723256083823,3.837,2606.2,2605.9,0.07472986]
[1723256084026,1.32760141,2606.1,2605.9,0.07472986]
[1723256084187,3.837,2606.2,2605.9,0.07472986]
[1723256084388,1.3276109,2606.1,2605.9,0.07472986]
[1723256084696,3.837,2606.2,2605.9,0.07472986]
[1723256084900,1.3276229,2606.1,2605.9,0.07472986]
[1723256085100,3.837,2606.2,2605.9,0.07472986]
[1723256085304,1.32762961,2606.1,2605.9,0.07472986]
[1723256085525,3.837,2606.2,2605.9,0.07472986]
[1723256085724,1.32759462,2606.1,2605.9,0.07472986]
[1723256085929,3.83686,2606.3,2605.9,0.07472986]
[1723256086092,1.32759033,2606.2,2605.9,0.07472986]
[1723256086293,1.32759033,2606.1,2605.9,0.07472986]
[1723256086493,9.32961,2606.4,2605.9,0.07472986]
[1723256086708,1.3276069,2606.3,2605.9,0.07472986]
[1723256086914,1.3276069,2606.2,2605.9,0.07472986]
[1723256087130,1.3276069,2606.1,2605.9,0.07472986]
[1723256087301,10.262571,2606.4,2605.9,0.07472986]
[1723256087498,1.32759815,2606.3,2605.9,0.07472986]
[1723256087704,1.32759815,2606.2,2605.9,0.07472986]
[1723256087901,1.32759815,2606.1,2605.9,0.07472986]
[1723256088089,10.262571,2606.4,2605.9,0.07472986]
[1723256088294,1.3275861,2606.3,2605.9,0.07472986]
[1723256088516,1.3275861,2606.2,2605.9,0.07472986]
[1723256088726,1.3275861,2606.3,2605.9,0.07472986]
[1723256089815,8.606571,2606.4,2605.9,0.07472986]
[1723256090034,1.32756595,2606.3,2605.9,0.07472986]
[1723256090327,1.32756595,2606.2,2605.9,0.07472986]
[1723256090493,1.32756595,2606.1,2605.9,0.07472986]
[1723256090693,3.83691,2606.3,2605.9,0.07472986]
[1723256090895,1.32760123,2606.2,2605.9,0.07472986]
[1723256091129,1.32760123,2606.1,2605.9,0.07472986]
[1723256091433,3.83691,2606.3,2605.9,0.07472986]
[1723256091597,1.32762321,2606.2,2605.9,0.07472986]
[1723256091797,1.32762321,2606.1,2605.9,0.07472986]
[1723256091998,1.32762321,2606.2,2605.9,0.07472986]
[1723256092210,1.32762321,2606.1,2605.9,0.07472986]
[1723256092413,3.83691,2606.3,2605.9,0.07472986]
[1723256092612,1.32758892,2606.2,2605.9,0.07472986]
[1723256092834,1.32757933,2606.1,2605.9,0.07472986]
[1723256093036,3.83691,2606.3,2605.9,0.07472986]
[1723256093331,1.32762212,2606.2,2605.9,0.07472986]
[1723256093524,1.32762212,2606.1,2605.9,0.07472986]
[1723256093726,3.83691,2606.3,2605.9,0.07472986]
[1723256093925,1.32760337,2606.2,2605.9,0.07472986]
[1723256094127,1.32760337,2606.1,2605.9,0.07472986]
[1723256094431,3.83691,2606.3,2605.9,0.07472986]
[1723256094739,1.32760399,2606.2,2605.9,0.07472986]
[1723256094936,1.32760399,2606.1,2605.9,0.07472986]
[1723256095104,1.32760399,2606.2,2605.9,0.07472986]
[1723256095305,1.32760363,2606.1,2605.9,0.07472986]
[1723256095514,3.83691,2606.3,2605.9,0.07472986]
[1723256095732,1.32761028,2606.2,2605.9,0.07472986]
[1723256095930,1.32761028,2606.1,2605.9,0.07472986]
[1723256096113,1.32761028,2606.2,2605.9,0.07472986]
[1723256096319,1.32761028,2606.1,2605.9,0.07472986]
[1723256096520,3.83691,2606.3,2605.9,0.07472986]
[1723256096722,1.32759604,2606.2,2605.9,0.07472986]
[1723256097039,4.769741,2606.4,2605.9,0.07472986]
[1723256097236,1.32755403,2606.3,2605.9,3.91214986]
[1723256097441,1.32755403,2606.2,2606.0,0.07673733]
[1723256097611,5.49249,2606.6,2606.1,0.07463065]
[1723256097612,3.83664,2606.5,2606.1,0.07463065]
[1723256097816,1.32752538,2606.4,2605.9,3.83735]
[1723256098016,1.32752538,2606.3,2606.0,0.07463065]
[1723256098316,1.32752538,2606.2,2606.0,0.07463065]
[1723256098651,3.83664,2606.5,2606.0,0.07463065]
[1723256098810,1.32752482,2606.4,2606.0,0.07463065]
[1723256099012,3.83664,2606.5,2606.0,0.07463065]
[1723256099013,1.32752482,2606.3,2606.0,0.07463065]
[1723256099216,1.32752482,2606.2,2606.0,0.07463065]
[1723256099514,3.83664,2606.5,2606.0,0.07463065]
[1723256099715,1.32755487,2606.4,2606.0,0.07463065]
[1723256099921,4.842963,2606.5,2606.0,0.07463065]
[1723256099922,1.32755487,2606.3,2606.0,0.07463065]
[1723256100128,1.32755487,2606.2,2606.0,0.07463065]
[1723256100321,4.842963,2606.5,2606.0,0.07463065]
[1723256100515,1.32755873,2606.4,2606.0,0.07463065]
[1723256100750,1.32755873,2606.3,2606.0,0.07463065]
[1723256101048,4.842963,2606.5,2606.0,0.07463065]
[1723256101247,1.3275588,2606.4,2606.0,0.07463065]
[1723256101409,1.3275588,2606.3,2606.0,0.07463065]
[1723256101613,1.3275588,2606.2,2606.0,0.07463065]
[1723256101851,4.842963,2606.5,2606.0,0.07463065]
[1723256102009,1.32755915,2606.4,2606.0,0.07463065]
[1723256102209,1.32755915,2606.3,2606.0,0.07463065]
[1723256102444,2.78238509,2606.4,2606.1,2.3663]
[1723256102644,1.32755915,2606.3,2606.1,2.3663]
[1723256102845,1.32755915,2606.2,2606.1,2.3663]
[1723256103013,3.83589,2607.0,2606.1,0.620365]
[1723256103212,0.99226018,2607.3,2606.1,0.620365]
[1723256103213,1.32741717,2606.9,2606.7,3.83623]
[1723256103415,3.83547,2607.3,2606.8,2.3663]
[1723256103654,1.32715264,2607.2,2606.8,2.3663]
[1723256103959,4.75637276,2607.3,2606.8,2.3663]
[1723256104254,3.83486,2607.7,2607.1,2.3663]
[1723256104549,7.6698,2607.7,2607.1,2.44300557]
[1723256104715,7.66977,2607.7,2607.1,2.44300557]
[1723256105156,3.83486,2607.7,2607.1,2.44300557]
[1723256105363,3.83495,2607.6,2607.1,2.44300557]
[1723256105528,3.83486,2607.7,2607.1,2.44300557]
[1723256106041,3.83486,2607.7,2607.1,6.20197]
[1723256106672,2.4542,2608.0,2607.1,6.20197]
[1723256106673,5.93375317,2608.1,2607.4,2.3663]
[1723256106822,5.93375317,2608.1,2607.5,3.83504]
[1723256107589,4.27775317,2608.1,2607.5,3.83504]
[1723256108024,4.27775317,2608.1,2607.4,2.3663]
[1723256108025,3.8346,2607.9,2607.4,2.3663]
[1723256111529,3.83425,2608.1,2607.4,2.3663]
[1723256111739,3.83425,2608.1,2607.3,1.656]
[1723256111740,3.83425,2608.1,2607.6,2.3663]
[1723256111966,3.83425,2608.1,2607.6,2.60293]
[1723256113868,3.83425,2608.1,2607.7,0.07173761]
[1723256115236,3.83393,2608.3,2607.7,3.90652761]
[1723256115444,3.83393,2608.3,2607.7,3.98321322]
[1723256115634,3.83393,2608.3,2607.7,5.19092354]
[1723256116034,3.83393,2608.3,2607.7,9.02560354]
[1723256116253,3.83362,2608.5,2607.7,9.02560354]
[1723256116254,3.83362,2608.5,2607.8,2.3663]
[1723256116473,1.656,2608.4,2607.9,3.90603252]
[1723256117469,1.656,2608.4,2607.9,5.0375048]
[1723256117657,1.656,2608.4,2607.9,0.07160252]
[1723256117862,3.83408,2608.2,2607.9,0.07160252]
[1723256120142,3.83427,2608.1,2607.9,0.07160252]
[1723256120342,3.83404,2608.3,2607.9,0.07160252]
[1723256120832,3.83356,2608.6,2608.1,1.656]
[1723256121035,3.83346,2608.7,2608.2,0.07148544]
[1723256121267,3.83345,2608.7,2608.2,0.07148544]
[1723256121443,3.83357,2608.6,2608.2,0.07148544]
[1723256121644,6.19547,2608.8,2608.1,3.8341]
[1723256121849,1.656,2608.8,2608.2,3.90522023]
[1723256122153,3.9573181,2609.1,2608.5,5.4896]
[1723256122449,0.1245081,2609.1,2608.7,2.2499]
[1723256122665,0.1245081,2609.1,2608.8,0.07096313]
[1723256123165,5.6132781,2609.1,2608.7,2.2499]
[1723256123335,3.8329,2609.0,2608.9,0.07096313]
[1723256123537,3.8329,2609.0,2608.7,2.2499]
[1723256123794,6.17460591,2609.1,2608.9,0.07096313]
[1723256123795,3.9572781,2609.1,2608.9,0.07096313]
[1723256123951,3.9572781,2609.1,2608.7,2.2499]
[1723256124579,3.9572781,2609.1,2608.8,0.07096313]
[1723256125082,3.9572781,2609.1,2608.7,2.2499]
[1723256125083,3.9572781,2609.1,2608.9,0.07096313]
[1723256125437,3.9572781,2609.1,2608.7,2.2499]
[1723256125738,3.9572781,2609.1,2608.8,0.07096313]
[1723256126183,3.9572781,2609.1,2608.7,2.2499]
[1723256126679,3.9572781,2609.1,2608.8,0.07096313]
[1723256127134,3.9572781,2609.1,2608.7,2.2499]
[1723256127339,3.9572781,2609.1,2608.9,0.07096313]
[1723256127539,3.9572781,2609.1,2608.7,2.2499]
[1723256127775,3.9572781,2609.1,2609.0,0.07096313]
[1723256127980,3.9572781,2609.1,2608.7,2.2499]
[1723256128280,0.1245081,2609.1,2608.7,2.2499]
[1723256128478,0.1245081,2609.1,2608.8,0.07096313]
[1723256128840,0.1245081,2609.1,2608.7,2.2499]
[1723256129041,0.1245081,2609.1,2608.8,0.07096313]
[1723256129242,0.1245081,2609.1,2608.7,2.2499]
[1723256129539,0.1245081,2609.1,2608.8,0.07096313]
[1723256129962,0.1245081,2609.1,2608.7,6.08321]
[1723256130260,0.1245081,2609.1,2608.7,6.691552]
[1723256130462,0.1245081,2609.1,2608.8,0.07096313]
[1723256130676,3.9572681,2609.1,2608.7,2.2499]
[1723256130877,3.9572681,2609.1,2608.9,0.07096313]
[1723256131178,3.9572681,2609.1,2608.7,2.2499]
[1723256131383,3.9572681,2609.1,2609.0,0.07096313]
[1723256131676,4.90185391,2609.1,2609.0,0.07096313]
[1723256131882,0.1245081,2609.1,2608.7,2.2499]
[1723256132466,0.1245081,2609.1,2608.8,0.07027893]
[1723256132673,0.1245081,2609.1,2608.7,2.2499]
[1723256132879,0.1245081,2609.1,2608.9,0.07027893]
[1723256133081,0.1245081,2609.1,2608.7,2.2499]
[1723256133379,0.1245081,2609.1,2609.0,0.07027893]
[1723256133585,0.1245081,2609.1,2608.7,2.2499]
[1723256133908,3.9573481,2609.1,2608.7,2.2499]
[1723256134113,4.73634191,2609.1,2608.8,0.07027893]
[1723256134602,4.73634191,2609.1,2608.7,2.2499]
[1723256134909,0.1245081,2609.1,2608.7,2.2896]
[1723256135132,0.1245081,2609.1,2608.5,1.656]
[1723256135133,0.1245081,2609.1,2609.0,9.95536]
[1723256135271,0.1245081,2609.1,2609.0,13.50536]
[1723256135471,0.1245081,2609.1,2609.0,15.48148476]
[1723256135693,0.1245081,2609.1,2609.0,17.13748476]
[1723256135909,0.1245081,2609.1,2609.0,20.97036476]
[1723256136771,0.1245081,2609.1,2609.0,17.13748476]
[1723256136972,0.1245081,2609.1,2609.0,16.58748476]
[1723256137736,0.1245081,2609.1,2609.0,14.93148476]
[1723256139635,0.1245081,2609.1,2609.0,18.76436476]
[1723256139839,0.1245081,2609.1,2609.0,19.31436476]
[1723256140007,0.1245081,2609.1,2609.0,27.10924476]
[1723256140211,8.39220778,2611.1,2609.0,27.10924476]
[1723256140212,3.8303,2610.8,2610.1,3.83122]
[1723256140409,3.8303,2610.8,2610.2,2.2574]
[1723256140719,7.66067,2610.8,2610.3,0.06898317]
[1723256140921,0.766067,2610.7,2610.3,0.06898317]
[1723256141243,3.8303,2610.8,2610.2,2.2574]
[1723256141466,3.8303,2610.8,2610.4,0.06898317]
[1723256141653,3.8303,2610.8,2610.2,2.2574]
[1723256142249,3.8303,2610.8,2610.3,0.0675711]
[1723256142429,3.8303,2610.8,2610.2,2.2574]
[1723256142631,4.92281308,2610.8,2610.2,2.2574]
[1723256142843,4.92281308,2610.8,2610.3,0.0675711]
[1723256143258,4.92281308,2610.8,2610.2,2.2574]
[1723256143428,4.66923078,2611.0,2610.3,3.83097]
[1723256143631,3.83001,2611.0,2610.3,3.83097]
[1723256143817,3.83011,2610.9,2610.5,2.2574]
[1723256144457,3.83001,2611.0,2610.6,0.0675711]
[1723256144825,3.83015,2610.9,2610.6,0.0675711]
[1723256145025,4.596166,2610.9,2610.6,0.0675711]
[1723256146176,3.83026,2610.8,2610.6,0.0675711]
[1723256146940,0.766016,2610.9,2610.6,0.0675711]
[1723256146941,10.08638,2610.7,2610.6,0.0675711]
[1723256147467,3.83102,2610.3,2609.9,2.2574]
[1723256147643,3.83102,2610.3,2610.0,0.0675711]
[1723256147976,3.83079,2610.5,2610.0,0.0675711]
[1723256148183,4.456431,2610.5,2610.0,0.0675711]
[1723256148351,3.83046,2610.7,2610.0,0.0675711]
[1723256148551,7.66036,2610.9,2610.2,6.08851]
[1723256148760,8.668956,2610.9,2610.2,6.08851]
[1723256148997,3.83025,2610.8,2610.2,2.2574]
[1723256149158,3.83025,2610.8,2610.3,0.0675711]
[1723256149688,3.83027,2610.8,2610.4,0.0675711]
[1723256149883,4.6971696,2610.8,2610.4,0.0675711]
[1723256150042,3.83068,2610.5,2609.9,2.2574]
[1723256150388,3.83068,2610.5,2610.0,0.0675711]
[1723256151279,3.83054,2610.6,2610.0,3.8988911]
[1723256151462,0.766099,2610.5,2610.0,3.8988911]
[1723256151781,0.766099,2610.5,2610.0,0.0675711]
[1723256151782,3.83099,2610.3,2610.0,0.0675711]
[1723256152346,3.83127,2610.1,2610.0,0.0675711]
[1723256152643,3.83127,2610.1,2609.6,2.2574]
[1723256152887,3.83152,2610.0,2609.7,0.06692375]
[1723256153482,3.83127,2610.1,2609.7,0.06692375]
[1723256153683,3.83102,2610.3,2609.7,0.06692375]
[1723256153896,3.83102,2610.3,2609.7,3.89868375]
[1723256154095,3.83075,2610.5,2609.8,6.08901]
[1723256154282,3.83046,2610.7,2610.0,2.2574]
[1723256154490,3.83084,2610.4,2610.1,0.06714849]
[1723256154914,3.83073,2610.5,2610.1,0.06714849]
[1723256155991,3.83045,2610.7,2610.1,0.06714849]
[1723256156191,3.83045,2610.7,2610.1,3.89838849]
[1723256156503,3.83045,2610.7,2610.1,0.06714849]
[1723256156836,4.213495,2610.7,2610.1,0.06714849]
[1723256157340,6.3876,2611.1,2610.2,2.373]
[1723256157341,3.83015,2610.9,2610.2,2.373]
[1723256157706,3.83015,2610.9,2610.3,0.06491021]
[1723256158243,3.83015,2610.9,2610.2,2.373]
[1723256158444,3.83024,2610.8,2610.2,6.20409]
[1723256158743,3.83024,2610.8,2610.3,0.06491021]
[1723256158945,4.455725,2610.9,2610.3,3.89587021]
[1723256159161,4.455725,2610.9,2610.3,3.83096]
[1723256159307,4.455725,2610.9,2610.4,0.06491021]
[1723256160117,3.82981,2611.1,2610.5,6.20359]
[1723256160305,3.82981,2611.1,2610.5,2.373]
[1723256160306,3.82996,2611.0,2610.5,2.373]
[1723256160509,3.82996,2611.0,2610.6,0.06440685]
[1723256160717,3.8301,2610.9,2610.6,0.06440685]
[1723256161016,4.445771,2611.1,2610.6,0.06440685]
[1723256161245,3.82981,2611.1,2610.6,0.06440685]
[1723256161608,3.82959,2611.3,2610.6,0.06440685]
[1723256161834,3.82924,2611.5,2610.9,3.82998]
[1723256162153,3.82924,2611.5,2610.7,6.20333]
[1723256162154,3.82924,2611.5,2610.8,0.05786111]
[1723256162312,3.9535381,2611.7,2611.1,2.373]
[1723256162513,0.1245081,2611.7,2611.2,3.82955]
[1723256162825,0.1245081,2611.7,2611.4,3.52524]
[1723256163246,0.1245081,2611.7,2611.5,0.06410135]
[1723256163751,3.9535581,2611.7,2611.3,2.373]
[1723256163950,3.82921,2611.5,2610.9,6.203]
[1723256164157,0.39535581,2611.6,2611.0,3.82992]
[1723256164317,0.39535581,2611.6,2610.9,6.203]
[1723256164646,0.39535581,2611.6,2611.1,3.8298]
[1723256164852,3.9535481,2611.7,2611.1,3.8298]
[1723256166242,3.82917,2611.6,2610.9,2.373]
[1723256166440,3.82951,2611.3,2610.9,2.373]
[1723256166645,3.82951,2611.3,2610.6,2.373]
[1723256166646,3.83004,2611.0,2610.6,2.373]
[1723256168036,4.0865081,2611.7,2611.2,2.373]
[1723256168037,0.1245081,2611.7,2611.2,2.373]
[1723256169421,0.1245081,2611.7,2611.3,3.8295]
[1723256170865,0.1245081,2611.7,2611.4,3.82933]
[1723256171054,0.1245081,2611.7,2611.5,3.82909]
[1723256171373,0.1245081,2611.7,2611.6,6.20207]
[1723256171682,0.1245081,2611.7,2611.6,2.373]
[1723256171833,0.1245081,2611.7,2611.4,2.373]
[1723256172033,3.9535381,2611.7,2611.1,3.82972]
[1723256172249,0.1245081,2611.7,2611.3,3.8295]
[1723256172854,3.9535281,2611.7,2611.1,3.82968]
[1723256173550,0.80700682,2611.7,2610.8,9.863]
[1723256173865,3.82953,2611.3,2610.8,9.863]
[1723256174160,3.82953,2611.3,2610.9,0.06240346]
[1723256174365,3.82967,2611.2,2610.9,0.06240346]
[1723256174672,3.82995,2611.0,2610.9,0.06240346]
[1723256175033,3.82995,2611.0,2610.5,2.373]
[1723256175261,3.82995,2611.0,2610.9,0.06240346]
[1723256175474,3.82995,2611.0,2610.3,7.49]
[1723256175475,3.83049,2610.7,2610.3,7.49]
[1723256175686,6.1598,2611.0,2610.3,3.83085]
[1723256175993,3.83011,2610.9,2610.3,3.83085]
[1723256176589,3.82973,2611.2,2610.3,3.83085]
[1723256176761,4.22593,2611.2,2610.5,6.20367]
[1723256177102,3.82981,2611.1,2610.5,6.20367]
[1723256177583,3.83004,2611.0,2610.2,6.10861]
[1723256177790,3.83004,2611.0,2610.4,3.83082]
[1723256177971,3.82973,2611.2,2610.5,3.83059]
[1723256178179,2.3298,2611.3,2610.7,3.83037]
[1723256178862,6.15933,2611.3,2610.7,3.83037]
[1723256179173,3.82975,2611.2,2610.5,3.83059]
[1723256179372,3.82975,2611.2,2610.6,2.2776]
[1723256179373,0.998877,2611.2,2610.6,2.2776]
[1723256179685,3.82942,2611.4,2610.7,3.83028]
[1723256180555,3.82952,2611.3,2610.7,3.83028]
[1723256181181,3.82967,2611.2,2610.7,3.83028]
[1723256181784,3.82998,2611.0,2610.6,2.2776]
[1723256183491,3.82967,2611.2,2610.6,2.2776]
[1723256183794,10.12293,2611.6,2610.9,3.83001]
[1723256184000,10.12293,2611.6,2610.6,2.2776]
[1723256184001,3.82913,2611.6,2611.1,3.82979]
[1723256184295,3.82884,2611.8,2611.1,6.10739]
[1723256184296,3.85771501,2611.7,2611.1,6.10739]
[1723256184586,1.05720751,2611.7,2611.1,6.10739]
[1723256185354,0.02878501,2611.7,2611.1,6.10739]
[1723256185556,3.82907,2611.6,2611.1,2.2776]
[1723256186556,3.82923,2611.5,2611.1,2.2776]
[1723256188054,3.82907,2611.6,2611.1,2.2776]
[1723256188856,3.82907,2611.6,2611.2,0.06291549]
[1723256189057,4.2148555,2611.6,2611.2,0.06291549]
[1723256189486,3.82976,2611.2,2610.7,7.49]
[1723256189658,3.82976,2611.2,2610.8,0.06291549]
[1723256189853,3.82981,2611.1,2610.7,7.49]
[1723256190198,3.83018,2610.9,2610.8,0.06291549]
[1723256190508,3.83018,2610.9,2610.5,2.2776]
[1723256190693,3.83018,2610.9,2610.6,0.06291549]
[1723256191001,3.82992,2611.1,2610.6,0.06291549]
[1723256193054,3.83004,2611.0,2610.6,0.06291549]
[1723256193257,3.83018,2610.9,2610.6,0.06291549]
[1723256193485,3.83024,2610.8,2610.6,0.06291549]
[1723256193765,0.382992,2611.0,2610.3,6.10853]
[1723256193766,4.213032,2611.0,2610.3,6.10853]
[1723256194093,3.83024,2610.8,2610.3,6.10853]
[1723256194311,3.83024,2610.8,2610.4,0.06378677]
[1723256194481,3.83004,2611.0,2610.4,0.06378677]
[1723256194674,3.83004,2611.0,2610.4,3.89457677]
[1723256195013,3.82912,2611.6,2610.5,2.2776]
[1723256195215,3.82923,2611.5,2610.9,3.83]
[1723256195375,3.82912,2611.6,2611.0,2.2776]
[1723256195574,3.82912,2611.6,2611.0,6.17152444]
[1723256195775,7.65775,2611.8,2611.1,3.82971]
[1723256196009,7.65775,2611.8,2611.0,7.16529644]
[1723256196010,3.82873,2611.9,2611.2,3.82953]
[1723256196215,3.82826,2612.2,2611.5,2.2776]
[1723256196517,3.82826,2612.2,2611.6,4.439764]
[1723256196518,3.8282,2612.2,2611.6,4.439764]
[1723256196675,3.82848,2612.0,2611.6,0.06375083]
[1723256196879,3.85770501,2611.7,2611.6,0.06375083]
[1723256197081,0.02878501,2611.7,2611.3,3.8294]
[1723256197472,0.02878501,2611.7,2611.4,0.06375083]
[1723256197677,0.02878501,2611.7,2611.4,4.66537091]
[1723256197886,0.02878501,2611.7,2611.4,3.89309083]
[1723256198181,0.02878501,2611.7,2611.5,2.3578]
[1723256198583,0.02878501,2611.7,2611.6,0.06312214]
[1723256199121,0.02878501,2611.7,2611.1,2.3578]
[1723256199278,3.85783501,2611.7,2611.2,0.06312214]
[1723256199480,3.82925,2611.5,2611.2,0.06312214]
[1723256199727,3.82925,2611.5,2610.8,6.18804]
[1723256199922,3.82925,2611.5,2610.9,0.06307724]
[1723256200218,3.82995,2611.0,2610.9,0.06307724]
[1723256200511,4.212945,2611.0,2610.5,2.3578]
[1723256200725,3.82995,2611.0,2610.5,2.3578]
[1723256200881,3.82969,2611.2,2610.6,0.06307724]
[1723256201431,3.83006,2611.0,2610.6,0.06307724]
[1723256201636,3.83024,2610.8,2610.6,0.06307724]
[1723256201840,0.383006,2611.0,2609.7,2.3578]
[1723256201841,3.83056,2610.6,2609.7,2.3578]
[1723256201983,7.66064,2610.8,2610.0,3.83132]
[1723256202191,3.8303,2610.8,2610.0,3.83132]
[1723256202390,3.83054,2610.6,2610.0,3.83132]
[1723256202715,3.962,2611.0,2610.1,3.83126]
[1723256202716,3.83039,2610.7,2610.1,3.83126]
[1723256202936,3.83007,2611.0,2610.2,3.83112]
[1723256203098,3.83007,2611.0,2610.3,2.3578]
[1723256203303,3.83007,2611.0,2610.3,6.807622]
[1723256203602,3.83007,2611.0,2610.4,0.07660705]
[1723256203801,3.82967,2611.2,2610.4,3.97049429]
[1723256204908,3.8294,2611.4,2610.6,3.83043]
[1723256205231,3.8294,2611.4,2610.7,0.45963923]
[1723256205438,3.8294,2611.4,2610.8,0.07659329]
[1723256205613,3.82951,2611.3,2610.8,0.07659329]
[1723256205785,3.8294,2611.4,2610.9,0.06307724]
[1723256206489,3.82953,2611.3,2610.9,0.06307724]
[1723256206995,3.82953,2611.3,2611.0,0.06307724]
[1723256207305,3.82966,2611.2,2611.1,0.06307724]
[1723256207499,7.65944,2611.2,2611.1,0.06307724]
[1723256207718,3.83006,2611.0,2610.5,7.49]
[1723256209417,2.3096,2611.2,2610.5,7.49]
[1723256209418,3.83053,2610.6,2610.5,7.49]
[1723256209711,3.83053,2610.6,2610.0,3.8314]
[1723256209921,3.83053,2610.6,2610.1,3.0]
[1723256210229,7.6612,2610.6,2610.1,3.0]
[1723256210437,3.83053,2610.6,2610.1,3.0]
[1723256210804,3.8303,2610.8,2610.1,8.499062]
[1723256211537,3.8304,2610.7,2610.1,8.499062]
[1723256212746,3.83069,2610.5,2610.1,4.667912]
[1723256213000,3.83101,2610.3,2609.9,9.8478]
[1723256213157,3.83101,2610.3,2609.6,6.18968]
[1723256213321,3.83129,2610.1,2609.6,7.940872]
[1723256213663,3.83101,2610.3,2609.6,7.940872]